bitfinex/quotes_ETHUSD_20220111
["timestamp","ask_amount","ask_price","bid_price","bid_amount"]
[1641902489216,29.23762255,3111.6,3111.5,0.00454739]
[1641902489414,30.11142644,3111.6,3111.5,0.00454739]
[1641902489615,30.03109644,3111.6,3111.5,0.00454739]
[1641902489816,28.66670198,3111.6,3111.5,0.00454739]
[1641902490315,34.46270198,3111.6,3111.5,0.00454739]
[1641902490716,37.68578339,3111.6,3111.5,0.00454739]
[1641902490925,37.75360797,3111.6,3111.5,0.00454739]
[1641902491557,34.53052656,3111.6,3111.1,0.9344497]
[1641902491757,4.704132,3111.5,3111.1,0.9344497]
[1641902491958,18.79,3111.3,3111.2,0.00170527]
[1641902492157,19.254,3111.3,3111.2,0.00170527]
[1641902492959,28.4992756,3111.3,3111.2,0.00170527]
[1641902493358,9.7092756,3111.3,3111.2,0.00170527]
[1641902493565,12.95927828,3111.3,3111.2,0.00170527]
[1641902494161,8.86239298,3111.3,3111.2,0.00170527]
[1641902494361,9.59909298,3111.3,3111.2,0.00170527]
[1641902494960,7.18195954,3111.3,3111.2,0.00170527]
[1641902495504,6.44525954,3111.3,3111.2,0.00170527]
[1641902495804,12.95927828,3111.3,3111.2,0.00170527]
[1641902496005,13.75377828,3111.3,3111.2,0.00170527]
[1641902496210,6.92563612,3111.3,3111.2,0.00170527]
[1641902497006,9.65689298,3111.3,3111.2,0.00170527]
[1641902497607,28.44689298,3111.3,3111.2,0.00170527]
[1641902498007,28.78868877,3111.3,3111.2,0.00170527]
[1641902498207,9.99868877,3111.3,3111.2,0.00170527]
[1641902498410,14.09557407,3111.3,3111.2,0.00170527]
[1641902498608,32.88557407,3111.3,3111.2,0.00170527]
[1641902499852,32.88557407,3111.3,3110.0,1.26795]
[1641902499853,6.8,3111.2,3110.0,1.26795]
[1641902500056,5.796,3110.9,3110.0,1.26795]
[1641902500254,5.796,3110.9,3110.3,0.128639]
[1641902500255,4.93689755,3110.8,3110.3,0.128639]
[1641902500457,0.74308572,3110.6,3110.3,0.128639]
[1641902500656,3.94198663,3110.5,3110.4,0.00454738]
[1641902500858,8.53113344,3110.5,3110.4,0.00454738]
[1641902501363,11.79123669,3110.5,3110.4,0.00454738]
[1641902501556,8.53113344,3110.5,3110.4,0.00454738]
[1641902501957,12.02851231,3110.5,3110.4,0.00454738]
[1641902502156,6.37851231,3110.5,3110.4,0.00454738]
[1641902503313,7.21803407,3110.5,3110.4,0.00454738]
[1641902504116,2.73125686,3110.5,3110.4,0.00454738]
[1641902504515,6.93026667,3110.5,3110.4,0.00454738]
[1641902504715,3.57071043,3110.5,3110.4,0.00454738]
[1641902511007,2.49749344,3110.8,3110.4,0.00454738]
[1641902511408,2.41713344,3110.7,3110.4,0.00454738]
[1641902511911,0.464,3110.6,3110.4,0.00454738]
[1641902515260,2.41713344,3110.7,3110.4,0.00454738]
[1641902516060,1.60421936,3110.6,3110.4,0.00454738]
[1641902518405,0.464,3110.5,3110.4,0.00454738]
[1641902518605,0.464,3110.5,3110.4,0.00134738]
[1641902519616,0.464,3110.5,3109.7,0.30532635]
[1641902520009,0.464,3110.5,3109.8,0.00475793]
[1641902521457,0.464,3110.5,3109.7,0.00532635]
[1641902523556,0.464,3110.5,3109.8,0.00437183]
[1641902523759,0.464,3110.5,3109.8,0.08037]
[1641902523957,0.464,3110.5,3109.9,0.0041895]
[1641902524557,0.464,3110.5,3109.8,0.00475793]
[1641902530759,0.01453391,3110.4,3109.8,0.00475793]
[1641902531160,0.464,3110.5,3109.8,0.00475793]
[1641902531361,2.73293545,3110.3,3109.8,0.00475793]
[1641902531559,0.00971827,3110.2,3109.8,0.00475793]
[1641902532159,2.73293545,3110.3,3109.8,0.00475793]
[1641902532361,2.73293545,3110.4,3109.8,0.00475793]
[1641902532614,2.73293545,3110.4,3109.8,0.30475793]
[1641902533009,2.73293545,3110.4,3109.9,0.0041895]
[1641902533209,2.73293545,3110.2,3109.9,0.0041895]
[1641902533510,2.73293545,3110.2,3109.7,0.00532635]
[1641902533909,2.73293545,3110.3,3109.7,0.00532635]
[1641902534808,2.73293545,3110.4,3109.7,0.00532635]
[1641902538262,5.77139662,3110.4,3109.7,0.00532635]
[1641902538463,2.73293545,3110.4,3109.7,0.00532635]
[1641902539465,2.73293545,3110.4,3109.8,0.08037]
[1641902539868,2.73293545,3110.4,3109.9,0.0041895]
[1641902540511,2.73293545,3110.4,3109.7,0.00532635]
[1641902540705,2.73293545,3110.4,3109.8,0.08037]
[1641902541105,2.73293545,3110.4,3109.9,0.0041895]
[1641902541707,2.73293545,3110.4,3109.7,0.00532635]
[1641902545264,0.02420608,3110.3,3109.7,0.00532635]
[1641902546168,0.87680796,3109.9,3109.7,0.00532635]
[1641902548614,3.3616102,3109.8,3109.7,0.00532635]
[1641902548814,2.73328233,3109.8,3109.7,0.00532635]
[1641902549015,2.73328233,3109.8,3109.6,0.00589477]
[1641902549414,2.73328233,3109.8,3109.4,0.13568862]
[1641902549617,2.73328233,3109.8,3109.4,0.128657]
[1641902549916,2.73328233,3109.8,3109.5,0.0064632]
[1641902552069,0.69389535,3109.9,3109.5,0.0064632]
[1641902552865,2.73328233,3109.8,3109.5,0.0064632]
[1641902553066,2.73328233,3109.8,3109.6,0.08039]
[1641902553267,2.73328233,3109.8,3109.5,0.0868532]
[1641902553466,2.73328233,3109.8,3109.7,0.00532635]
[1641902553671,2.73328233,3109.8,3109.6,0.00589477]
[1641902554270,2.73328233,3109.8,3109.5,0.0064632]
[1641902555217,2.73328233,3110.2,3109.5,0.0064632]
[1641902555814,2.73328233,3109.7,3109.5,0.0064632]
[1641902556415,5.77522513,3110.3,3109.5,0.0064632]
[1641902556616,2.73328233,3110.3,3109.5,0.0064632]
[1641902557018,1.34345494,3110.4,3109.5,0.0064632]
[1641902557219,4.38906067,3110.4,3109.5,0.0868332]
[1641902557420,2.73333162,3110.2,3109.5,0.0868332]
[1641902557717,2.73333162,3110.2,3109.6,0.00589477]
[1641902557917,2.73333162,3110.3,3109.6,0.00589477]
[1641902558617,3.15795349,3110.2,3109.6,0.00589477]
[1641902559160,3.15795349,3110.2,3109.5,0.0064632]
[1641902559360,3.23832349,3110.2,3109.5,0.0064632]
[1641902559560,2.73333162,3110.1,3109.5,0.0064632]
[1641902560064,3.05796311,3110.0,3109.5,0.0064632]
[1641902560462,2.73333162,3110.1,3109.5,0.0064632]
[1641902560664,3.06279423,3110.0,3109.5,0.0064632]
[1641902560967,2.73333162,3110.1,3109.5,0.0064632]
[1641902561162,3.04576903,3110.0,3109.5,0.0064632]
[1641902561369,2.73333162,3109.9,3109.5,0.0064632]
[1641902562064,3.31813521,3109.8,3109.5,0.0064632]
[1641902562722,7.34439,3109.7,3108.7,10.98889]
[1641902562918,3.3616102,3109.6,3108.7,10.9085]
[1641902563116,1.38080053,3109.4,3108.8,0.00397896]
[1641902563316,1.17954408,3109.3,3108.8,0.00397896]
[1641902563721,1.17954408,3109.3,3108.7,0.08494738]
[1641902564815,2.73333162,3109.2,3108.7,0.08494738]
[1641902565017,3.03981832,3109.1,3108.7,0.08494738]
[1641902565214,6.22048431,3109.2,3108.7,0.08494738]
[1641902565815,6.22048431,3109.2,3108.8,0.3216]
[1641902566015,6.22048431,3109.2,3108.8,0.6216]
[1641902566216,2.73333162,3109.1,3108.9,0.00341054]
[1641902566470,0.464,3109.0,3108.9,0.00341054]
[1641902567263,6.20960834,3109.0,3108.9,0.00341054]
[1641902567464,3.19733162,3109.0,3108.9,0.00341054]
[1641902568765,3.19733162,3109.0,3108.9,0.32501054]
[1641902569366,3.19733162,3109.0,3108.6,0.128671]
[1641902569367,4.6,3108.9,3108.6,0.128671]
[1641902569567,3.45233666,3108.8,3108.6,0.128671]
[1641902569769,3.45233666,3108.8,3108.7,0.00113684]
[1641902570812,6.18566828,3108.8,3108.7,0.00113684]
[1641902572615,2.73333162,3108.8,3108.7,0.00113684]
[1641902573415,3.0601501,3108.9,3108.7,0.00113684]
[1641902573614,0.464,3109.0,3108.7,0.00113684]
[1641902573866,3.05252356,3108.9,3108.7,0.00113684]
[1641902574270,3.03916727,3108.9,3108.7,0.00113684]
[1641902574666,3.03916727,3108.9,3108.4,0.00284211]
[1641902574866,0.08042,3108.8,3108.4,0.00284211]
[1641902575267,0.464,3108.7,3108.4,0.00284211]
[1641902578112,0.464,3108.7,3108.5,0.00364821]
[1641902578511,0.464,3108.7,3108.6,0.00170527]
[1641902578917,0.464,3108.7,3108.4,0.00284211]
[1641902582665,2.73448484,3108.6,3108.4,0.00284211]
[1641902584768,2.73448484,3108.8,3108.4,0.00284211]
[1641902585917,2.73448484,3108.5,3108.4,0.00284211]
[1641902586324,2.73448484,3109.0,3108.4,0.00284211]
[1641902586719,1.60421936,3109.2,3108.4,3.42287669]
[1641902586920,1.60421936,3109.2,3108.5,0.00339478]
[1641902587118,1.60421936,3109.2,3108.7,6.2]
[1641902587323,3.14577197,3109.7,3108.8,4.6304]
[1641902587522,3.14577197,3109.7,3108.9,0.3]
[1641902587720,0.00170527,3109.4,3109.0,0.08039]
[1641902587920,3.14577197,3109.7,3109.0,0.08039]
[1641902588120,1.2389,3109.8,3109.1,0.00170527]
[1641902588324,0.00113685,3109.6,3109.1,0.00170527]
[1641902593722,0.08152685,3109.6,3109.1,0.00170527]
[1641902593922,0.02269434,3109.5,3109.0,0.00227369]
[1641902594125,0.08039,3109.4,3108.9,0.00284212]
[1641902594322,0.01685733,3109.3,3108.7,0.00397896]
[1641902594522,0.0804,3109.5,3108.5,0.00511581]
[1641902594721,0.0804,3109.5,3108.4,0.00568423]
[1641902596769,0.0804,3109.5,3108.7,1.64050708]
[1641902596971,0.0804,3109.5,3108.7,1.94050708]
[1641902597175,0.0804,3109.5,3108.8,0.00341054]
[1641902597368,0.00113685,3109.6,3108.9,0.08039]
[1641902597774,0.00113685,3109.6,3109.0,0.00227369]
[1641902598372,0.00113685,3109.6,3109.0,1.64278077]
[1641902598569,0.00113685,3109.6,3109.0,1.94278077]
[1641902598769,0.00113685,3109.6,3109.1,0.00170527]
[1641902598970,0.00113685,3109.6,3109.1,1.64221235]
[1641902599371,0.00113685,3109.6,3109.2,0.00113685]
[1641902601517,0.00113685,3109.6,3109.2,1.64164393]
[1641902601916,0.00113685,3109.6,3109.2,1.94164393]
[1641902602815,0.00113685,3109.6,3109.3,1.64050708]
[1641902603021,0.00113685,3109.6,3109.3,1.94050708]
[1641902603723,0.00113685,3109.6,3109.3,0.3]
[1641902603977,0.00113685,3109.6,3109.2,0.30113685]
[1641902604680,0.00113685,3109.6,3109.2,1.94164393]
[1641902604876,3.06266703,3109.6,3109.2,2.24164393]
[1641902605074,0.00113685,3109.6,3109.2,2.24164393]
[1641902605275,3.0586387,3109.6,3109.2,2.24164393]
[1641902605680,0.00113685,3109.6,3109.2,2.24164393]
[1641902605878,3.08724059,3109.6,3109.3,1.64050708]
[1641902606078,3.08724059,3109.6,3109.3,1.94050708]
[1641902606781,0.464,3109.5,3109.2,0.00113685]
[1641902607085,3.08608104,3109.4,3109.1,0.00170527]
[1641902607280,0.54439,3109.3,3109.1,0.00170527]
[1641902607483,3.3419649,3109.2,3109.1,0.00170527]
[1641902607723,3.8863549,3109.2,3109.1,0.00170527]
[1641902608520,0.88941661,3109.0,3108.7,0.00397896]
[1641902608721,1.35341661,3109.0,3108.7,0.00397896]
[1641902610023,1.35341661,3109.0,3108.7,1.94448604]
[1641902610420,1.35341661,3109.0,3108.8,0.00341054]
[1641902612070,3.0376448,3108.9,3108.8,0.00341054]
[1641902612372,3.046277,3108.9,3108.8,0.00341054]
[1641902613473,1.35341661,3109.0,3108.8,0.00341054]
[1641902613674,1.35341661,3109.0,3108.7,0.00397896]
[1641902616429,1.35341661,3109.0,3108.7,1.64448604]
[1641902616631,1.35341661,3109.0,3108.7,1.94448604]
[1641902616931,1.35341661,3109.0,3108.8,0.00341054]
[1641902618232,3.10808495,3108.9,3108.8,0.00341054]
[1641902618431,1.35341661,3109.0,3108.8,0.00341054]
[1641902618638,3.07288968,3108.9,3108.8,0.00341054]
[1641902618868,1.35341661,3109.0,3108.8,0.30341054]
[1641902619070,3.03355275,3108.9,3108.8,0.3]
[1641902619470,1.35341661,3109.0,3108.6,0.3]
[1641902619672,3.03372019,3108.9,3108.5,1.94050708]
[1641902619871,0.464,3108.9,3108.7,0.00397896]
[1641902620272,3.5303941,3108.9,3108.7,0.00397896]
[1641902620471,3.51029652,3108.9,3108.7,0.00397896]
[1641902620671,3.0710201,3108.8,3108.7,0.00397896]
[1641902620873,0.464,3108.9,3108.7,0.00397896]
[1641902621874,3.51523218,3108.9,3108.7,0.00397896]
[1641902622076,0.464,3108.9,3108.7,0.00397896]
[1641902623522,0.464,3108.9,3108.8,2.73452116]
[1641902623926,0.464,3108.9,3108.8,2.7379317]
[1641902623927,0.9402211,3108.9,3108.8,2.7379317]
[1641902625023,0.9402211,3108.9,3108.8,0.00341054]
[1641902625423,1.81131619,3108.9,3108.8,0.00341054]
[1641902625628,1.81131619,3108.9,3108.8,2.7379317]
[1641902626025,0.9402211,3108.9,3108.8,3.0379317]
[1641902626229,0.9402211,3108.9,3108.8,0.30341054]
[1641902626868,0.9402211,3108.9,3108.8,3.0379317]
[1641902627869,3.96274955,3108.9,3108.8,3.0379317]
[1641902628071,3.96274955,3108.9,3108.8,2.7379317]
[1641902628271,4.18028595,3108.9,3108.8,2.7379317]
[1641902629470,4.18028595,3108.9,3108.8,0.00341054]
[1641902629672,4.26068595,3108.9,3108.8,0.00341054]
[1641902630137,5.26068595,3108.9,3108.8,0.00341054]
[1641902630926,5.26068595,3108.9,3108.5,2.73452116]
[1641902630927,5.26068595,3108.9,3108.6,0.00454739]
[1641902631129,0.0804,3108.8,3108.6,0.00454739]
[1641902631329,2.864,3108.7,3108.6,0.00454739]
[1641902631635,6.0758014,3108.7,3108.6,0.00454739]
[1641902631828,6.0758014,3108.7,3108.5,0.00511581]
[1641902632029,3.24938239,3108.6,3108.5,0.00511581]
[1641902632231,3.71338239,3108.6,3108.5,0.00511581]
[1641902632434,3.60020092,3108.6,3108.5,0.00511581]
[1641902632630,3.64203291,3108.6,3108.5,0.00511581]
[1641902632833,3.65892832,3108.6,3108.4,0.30568423]
[1641902633031,0.464,3108.6,3108.5,0.00511581]
[1641902633434,0.464,3108.6,3108.4,0.30568423]
[1641902633876,0.464,3108.6,3108.5,0.00511581]
[1641902634077,3.6671782,3108.6,3108.5,0.00511581]
[1641902634280,0.464,3108.6,3108.5,0.00511581]
[1641902634477,0.464,3108.6,3108.4,0.00568423]
[1641902634678,0.464,3108.6,3108.5,0.00511581]
[1641902634878,0.464,3108.6,3108.4,0.00568423]
[1641902640325,1.464,3108.6,3108.4,0.00568423]
[1641902640525,0.464,3108.6,3108.4,0.00568423]
[1641902645626,18.79,3108.5,3108.4,0.00568423]
[1641902645826,4.95,3108.4,3108.2,0.94013393]
[1641902646029,5.364,3108.3,3108.0,0.94013393]
[1641902646228,5.364,3108.3,3107.7,3.28063264]
[1641902646229,3.15,3108.2,3107.7,3.28063264]
[1641902646426,0.464,3108.1,3107.7,3.28063264]
[1641902646627,0.85419637,3108.0,3107.7,3.28063264]
[1641902646827,0.85419637,3108.0,3107.6,0.128726]
[1641902646828,0.464,3107.9,3107.6,0.128726]
[1641902647232,0.464,3107.9,3107.7,0.00397897]
[1641902647828,0.464,3107.9,3107.7,2.73930664]
[1641902648228,0.464,3107.9,3107.8,0.00341055]
[1641902648729,0.464,3107.9,3107.8,2.73873822]
[1641902649172,0.464,3107.9,3107.8,0.00341055]
[1641902649780,0.464,3107.9,3107.8,2.73873822]
[1641902650374,0.464,3107.9,3107.8,0.00341055]
[1641902650573,0.79905933,3107.9,3107.8,0.00341055]
[1641902651377,0.79905933,3107.9,3107.6,0.00454739]
[1641902652076,0.79905933,3107.9,3107.7,2.73532767]
[1641902652475,0.79905933,3107.9,3107.8,0.00341055]
[1641902653723,1.28624499,3107.9,3107.8,0.00341055]
[1641902653925,1.28624499,3107.9,3107.5,0.00511582]
[1641902654322,1.28624499,3107.9,3107.8,2.73532767]
[1641902654522,1.28624499,3107.9,3107.8,3.03532767]
[1641902654722,1.28624499,3107.9,3107.8,3.03873822]
[1641902654926,1.28624499,3107.9,3107.8,0.30341055]
[1641902655525,1.28624499,3107.9,3107.8,0.00341055]
[1641902655722,1.28624499,3107.9,3107.8,2.73873822]
[1641902655925,1.28624499,3107.9,3107.8,3.03873822]
[1641902656370,1.28624499,3107.9,3107.8,0.30341055]
[1641902656569,1.28624499,3107.9,3107.8,0.00341055]
[1641902656770,1.28624499,3107.9,3107.8,2.73873822]
[1641902656968,1.36667499,3107.9,3107.8,2.73873822]
[1641902657370,1.36667499,3107.9,3107.8,0.00341055]
[1641902657770,1.36667499,3107.9,3107.5,0.00511582]
[1641902657969,2.36667499,3107.9,3107.5,0.00511582]
[1641902658371,1.36667499,3107.9,3107.5,0.00511582]
[1641902658572,2.36667499,3107.9,3107.5,0.00511582]
[1641902658774,2.36667499,3107.9,3107.6,2.73532767]
[1641902658973,1.36667499,3107.9,3107.6,2.73532767]
[1641902659176,2.36667499,3107.9,3107.6,2.73532767]
[1641902659975,1.36667499,3107.9,3107.6,2.73532767]
[1641902660274,2.36667499,3107.9,3107.8,2.4393047]
[1641902660656,2.36667499,3107.9,3107.8,2.44271525]
[1641902661056,2.36667499,3107.9,3107.8,0.00341055]
[1641902661455,1.36667499,3107.9,3107.8,0.00341055]
[1641902661657,2.20692603,3107.9,3107.8,2.44271525]
[1641902661857,2.12649603,3107.9,3107.8,2.44271525]
[1641902662455,2.12649603,3107.9,3107.8,0.30341055]
[1641902662960,2.12649603,3107.9,3107.8,0.00341055]
[1641902663358,2.12649603,3107.9,3107.8,2.73873822]
[1641902663559,2.12649603,3107.9,3107.8,3.03873822]
[1641902663760,2.12649603,3107.9,3107.8,0.30341055]
[1641902664272,2.12649603,3107.9,3107.8,0.00341055]
[1641902664671,2.12649603,3107.9,3107.8,2.73873822]
[1641902665070,2.12649603,3107.9,3107.8,3.03873822]
[1641902665477,2.12649603,3107.9,3107.8,0.00341055]
[1641902666276,2.12649603,3107.9,3107.8,2.73873822]
[1641902667074,2.12649603,3107.9,3107.8,0.00341055]
[1641902667733,2.12649603,3107.9,3107.8,5.2007283]
[1641902668631,20.91649603,3107.9,3107.8,0.00341055]
[1641902669032,21.91649603,3107.9,3107.8,4.38019095]
[1641902669735,21.91649603,3107.9,3107.8,1.64486328]
[1641902670531,21.91649603,3107.9,3107.8,0.00341055]
[1641902670932,21.91649603,3107.9,3107.8,4.38015335]
[1641902671777,21.91649603,3107.9,3107.8,1.64482568]
[1641902672178,21.99692603,3107.9,3107.8,2.73873822]
[1641902672580,21.99692603,3107.9,3107.8,0.00341055]
[1641902674579,21.91649603,3107.9,3107.8,0.00341055]
[1641902677223,20.91649603,3107.9,3107.8,0.00341055]
[1641902678724,2.12649603,3107.9,3107.8,2.46558965]
[1641902679191,5.11983901,3107.9,3107.8,2.46558965]
[1641902679588,23.90983901,3107.9,3107.5,3.28063264]
[1641902679790,5.85,3107.8,3107.5,3.28063264]
[1641902679988,23.90983901,3107.9,3107.1,4.10091902]
[1641902679989,4.8,3107.6,3107.1,4.10091902]
[1641902680192,3.88144505,3107.5,3107.1,4.10091902]
[1641902680394,0.464,3107.4,3107.2,0.0022737]
[1641902680589,4.25,3107.1,3106.6,9.32681754]
[1641902680794,3.8199394,3107.0,3106.8,4.10375687]
[1641902681095,3.4,3106.9,3106.8,4.10375687]
[1641902681290,3.864,3106.9,3106.8,4.10375687]
[1641902681490,5.64204209,3106.9,3106.8,0.00227369]
[1641902681790,4.864,3106.9,3106.2,0.00568423]
[1641902682093,1.0,3106.8,3106.2,0.00568423]
[1641902682289,0.464,3106.7,3106.2,0.00568423]
[1641902682923,0.80422526,3106.4,3106.2,0.00568423]
[1641902683124,2.08922526,3106.4,3106.2,0.00568423]
[1641902683731,3.03543407,3106.3,3106.2,0.00568423]
[1641902683926,3.07755451,3106.3,3106.2,0.00568423]
[1641902684127,2.08922526,3106.4,3106.2,0.00568423]
[1641902684730,0.2226,3106.5,3106.4,2.28918368]
[1641902684929,6.0366,3106.5,3106.4,2.28918368]
[1641902685129,9.91275008,3106.5,3106.4,2.29373106]
[1641902685332,11.89481692,3106.5,3106.4,2.29373106]
[1641902685531,5.54481692,3106.5,3106.4,2.29373106]
[1641902685730,6.46435692,3106.5,3106.4,2.29373106]
[1641902686390,6.24175692,3106.5,3106.4,2.29373106]
[1641902688579,6.32221692,3106.5,3106.4,2.29373106]
[1641902689183,6.24175692,3106.5,3106.4,2.29373106]
[1641902689583,6.24175692,3106.5,3106.4,3.93589774]
[1641902691228,1.464,3106.5,3106.4,3.93589774]
[1641902691429,4.65415919,3106.5,3106.4,3.93589774]
[1641902691632,4.60103717,3106.5,3106.4,3.93589774]
[1641902692028,5.4416919,3106.5,3106.4,3.93589774]
[1641902692228,5.4416919,3106.5,3106.4,2.29373106]
[1641902693132,5.4416919,3106.5,3106.4,5.57785904]
[1641902694977,5.4416919,3106.5,3106.4,8.3147088]
[1641902695177,24.2316919,3106.5,3106.4,8.3147088]
[1641902696179,24.2316919,3106.5,3106.4,5.03058082]
[1641902696576,5.4416919,3106.5,3106.4,5.03058082]
[1641902696786,5.4416919,3106.5,3106.4,8.3147088]
[1641902697380,24.2316919,3106.5,3106.4,8.3147088]
[1641902698533,5.4416919,3106.5,3106.4,5.03058082]
[1641902698933,24.2316919,3106.5,3106.4,5.03058082]
[1641902699133,22.69,3106.3,3105.9,4.1051215]
[1641902699341,4.03859691,3106.2,3105.9,4.1051215]
[1641902699534,4.03859691,3106.2,3106.0,0.0022737]
[1641902699734,3.11769138,3106.1,3106.0,0.0022737]
[1641902699935,0.464,3106.1,3106.0,0.0022737]
[1641902700334,0.464,3106.1,3105.7,4.10910047]
[1641902700534,1.0,3106.3,3105.7,4.10910047]
[1641902700535,0.464,3106.0,3105.7,4.10910047]
[1641902700835,0.464,3105.9,3105.8,0.00341054]
[1641902701035,0.76241544,3105.9,3105.7,4.00853204]
[1641902701235,0.76241544,3105.9,3105.8,4.00853204]
[1641902701884,0.76241544,3105.9,3105.5,1.6632637]
[1641902702078,0.76241544,3105.9,3105.5,1.6132637]
[1641902702278,0.76241544,3105.9,3105.6,0.00113685]
[1641902707243,0.76241544,3105.9,3105.6,4.10693291]
[1641902708141,0.76241544,3105.9,3105.7,3.28458925]
[1641902708540,0.76241544,3105.9,3105.7,3.58458925]
[1641902708741,0.76241544,3105.9,3105.8,3.28458925]
[1641902710974,0.76241544,3105.9,3105.7,3.28458925]
[1641902711174,0.76241544,3105.9,3105.7,3.58458925]
[1641902711375,1.2333569,3105.9,3105.7,3.58458925]
[1641902711775,1.2333569,3105.9,3105.7,2.50225925]
[1641902712181,0.93494146,3105.9,3105.6,4.5360757]
[1641902712378,0.47094146,3105.9,3105.6,4.5360757]
[1641902712654,0.94976348,3106.9,3105.6,1.20911874]
[1641902712855,0.94976348,3106.9,3105.6,2.06611874]
[1641902713056,0.00341054,3106.4,3105.8,4.10579606]
[1641902713256,0.00341054,3106.4,3105.8,3.31493606]
[1641902713555,0.00284211,3106.3,3105.8,3.33930606]
[1641902713759,0.00284211,3106.3,3105.8,3.31493606]
[1641902713955,0.00227369,3106.2,3105.8,3.31493606]
[1641902714155,0.00227369,3106.2,3105.6,0.00113685]
[1641902714355,0.00170527,3106.1,3105.6,0.00113685]
[1641902714859,0.00113684,3106.0,3105.6,0.00113685]
[1641902715855,0.54449,3106.5,3105.6,0.00113685]
[1641902716257,0.0022737,3106.4,3105.6,0.00227369]
[1641902716676,0.00170527,3106.3,3105.6,0.00227369]
[1641902716878,0.46570527,3106.3,3105.6,0.00227369]
[1641902717075,0.00113685,3106.2,3105.6,0.00227369]
[1641902717281,0.00113685,3106.2,3106.1,2.46338317]
[1641902718378,0.37790665,3106.2,3106.1,2.46338317]
[1641902718980,0.37790665,3106.2,3106.1,2.76338317]
[1641902719177,0.37790665,3106.2,3106.1,0.3]
[1641902719579,0.37790665,3106.2,3106.0,2.76338317]
[1641902719781,0.37790665,3106.2,3106.1,2.73709952]
[1641902719985,0.37790665,3106.2,3106.1,3.03709952]
[1641902722237,0.37790665,3106.2,3106.1,5.50048269]
[1641902723035,0.37790665,3106.2,3106.1,3.03709952]
[1641902726680,0.37790665,3106.2,3106.1,6.31479485]
[1641902728332,0.37790665,3106.2,3106.1,3.03709952]
[1641902729331,0.37790665,3106.2,3106.1,6.31479485]
[1641902730134,0.16790665,3106.2,3106.1,3.03709952]
[1641902731236,0.84055079,3106.7,3106.1,7.2967005]
[1641902731482,0.84055079,3106.7,3106.1,7.5967005]
[1641902731680,0.00227369,3106.6,3106.1,7.5967005]
[1641902731884,0.00227369,3106.6,3106.4,3.27709264]
[1641902732084,0.00170527,3106.5,3106.4,3.87709264]
[1641902732689,0.00170527,3106.5,3106.4,3.33709952]
[1641902735738,0.00170527,3106.5,3106.4,6.61425626]
[1641902736940,0.00170527,3106.5,3106.4,3.33709952]
[1641902737140,0.00170527,3106.5,3106.4,3.03709952]
[1641902737340,0.00170527,3106.5,3106.4,2.73709952]
[1641902737940,0.00170527,3106.5,3106.1,2.73709952]
[1641902738147,0.54447,3106.4,3106.1,2.73709952]
[1641902738341,3.49695239,3106.3,3106.1,2.73709952]
[1641902738541,0.54447,3106.2,3106.1,3.28450456]
[1641902739281,0.54447,3106.2,3106.0,0.3]
[1641902739481,0.464,3106.2,3105.7,4.39710813]
[1641902739681,0.464,3106.2,3105.7,4.69710813]
[1641902739883,0.464,3106.2,3105.8,0.00227369]
[1641902740083,0.464,3106.2,3106.1,2.73709952]
[1641902740284,0.464,3106.2,3106.1,3.03709952]
[1641902740484,0.464,3106.2,3106.1,0.6]
[1641902740686,0.464,3106.2,3106.1,0.3]
[1641902740886,0.464,3106.2,3105.8,7.43648134]
[1641902741283,0.464,3106.2,3105.9,0.00170527]
[1641902741684,0.464,3106.2,3106.1,2.73709952]
[1641902742083,0.464,3106.2,3106.1,0.6]
[1641902742484,0.464,3106.2,3106.1,2.73709952]
[1641902742934,0.464,3106.2,3106.1,3.33709952]
[1641902743141,0.00113685,3106.4,3106.1,3.33709952]
[1641902743440,0.00113685,3106.4,3106.1,0.6]
[1641902743634,0.00113685,3106.4,3106.1,0.3]
[1641902743835,0.00113685,3106.4,3106.2,2.73709952]
[1641902744035,0.00113685,3106.4,3106.2,3.03709952]
[1641902744835,0.00113685,3106.4,3106.1,2.73709952]
[1641902745040,0.00113685,3106.4,3106.1,3.03709952]
[1641902745237,0.00113685,3106.4,3106.3,2.73709952]
[1641902745440,0.00113685,3106.4,3106.3,1.69506559]
[1641902745642,0.00113685,3106.4,3106.3,6.45553228]
[1641902745840,0.00113685,3106.4,3106.3,3.00756559]
[1641902746045,0.00113685,3106.4,3106.3,5.74466511]
[1641902747105,0.48576348,3106.9,3106.4,6.75]
[1641902747504,0.00227369,3106.8,3106.4,10.01350571]
[1641902747706,0.00227369,3106.8,3106.4,3.25049688]
[1641902747907,0.00170527,3106.7,3106.3,3.33709952]
[1641902748312,0.00113684,3106.6,3106.5,2.73709952]
[1641902748507,0.00113684,3106.6,3106.5,5.22159952]
[1641902749109,0.00113684,3106.6,3106.5,2.4845]
[1641902749309,0.00113684,3106.6,3106.5,5.6345]
[1641902749710,0.00113684,3106.6,3106.5,8.37159952]
[1641902750345,0.00113684,3106.6,3106.5,11.63245169]
[1641902750752,0.00113684,3106.6,3106.5,11.03245169]
[1641902750950,0.00113684,3106.6,3106.5,11.33245169]
[1641902751152,0.00113684,3106.6,3106.5,11.63245169]
[1641902751453,7.504,3107.4,3106.5,8.48245169]
[1641902751649,7.504,3107.4,3106.6,1.0]
[1641902751857,0.00397897,3107.3,3106.6,1.0]
[1641902752250,0.00341054,3107.2,3106.6,1.0]
[1641902752656,0.00284212,3107.1,3106.7,2.73709952]
[1641902753050,0.0022737,3107.0,3106.7,3.03709952]
[1641902753451,0.00170527,3106.9,3106.7,3.03709952]
[1641902753653,0.00170527,3106.9,3106.8,12.34998243]
[1641902753885,7.504,3107.4,3106.8,9.87624641]
[1641902754093,7.504,3107.4,3106.8,12.61334593]
[1641902754382,0.00397897,3107.3,3106.8,11.34169952]
[1641902754778,0.00341054,3107.2,3106.8,11.34169952]
[1641902754982,0.00341054,3107.2,3107.1,3.26572796]
[1641902755181,7.504,3107.4,3107.1,6.86572796]
[1641902755383,7.51103583,3107.4,3107.1,8.46572796]
[1641902755583,0.00397897,3107.3,3107.1,7.46572796]
[1641902755782,0.00397897,3107.3,3107.1,3.86572796]
[1641902755987,7.51103583,3107.4,3107.2,5.58709952]
[1641902756187,7.51103583,3107.4,3107.2,8.9048441]
[1641902756384,0.00397897,3107.3,3107.2,8.9048441]
[1641902756588,0.00397897,3107.3,3107.2,8.85933166]
[1641902756789,0.00397897,3107.3,3107.2,7.05708527]
[1641902757185,0.00397897,3107.3,3107.2,8.05708527]
[1641902757646,0.00397897,3107.3,3107.2,10.79069917]
[1641902757830,0.00397897,3107.3,3107.2,7.46023112]
[1641902758033,0.00397897,3107.3,3107.2,10.79079691]
[1641902758232,0.00397897,3107.3,3107.2,7.46023112]
[1641902758832,0.00397897,3107.3,3107.2,10.75545417]
[1641902759033,0.00397897,3107.3,3107.2,7.46023112]